bitfinex/quotes_BTCUSD_20251208
["timestamp","ask_amount","ask_price","bid_price","bid_amount"]
[1765178200878,0.22950756,91501.0,91496.0,0.003]
[1765178200879,0.2295107,91499.0,91496.0,0.003]
[1765178201027,0.2295107,91499.0,91497.0,0.02427]
[1765178201221,0.01092908,91499.0,91496.0,0.003]
[1765178201481,0.01092908,91499.0,91495.0,0.25327396]
[1765178201626,0.01092908,91499.0,91495.0,0.27754396]
[1765178201831,0.01092908,91499.0,91498.0,0.001]
[1765178202034,0.0109292,91498.0,91495.0,0.04802392]
[1765178202433,0.0109292,91498.0,91496.0,0.002]
[1765178202632,0.0109292,91498.0,91495.0,0.04672392]
[1765178202835,0.22950432,91502.0,91496.0,0.21858879]
[1765178202999,0.01092896,91500.0,91498.0,0.002]
[1765178203195,0.01092896,91500.0,91497.0,0.01092932]
[1765178203372,0.01092896,91500.0,91496.0,0.01092943]
[1765178203572,0.01092896,91500.0,91496.0,0.03389943]
[1765178203989,0.21856216,91508.0,91496.0,0.03389943]
[1765178203990,0.01092824,91506.0,91502.0,0.01092872]
[1765178204190,0.01092824,91506.0,91503.0,0.0109286]
[1765178204408,0.01092824,91506.0,91503.0,0.01164]
[1765178205598,0.22949519,91506.0,91503.0,0.01364]
[1765178205800,0.23049519,91506.0,91503.0,0.01364]
[1765178206014,0.21856919,91505.0,91503.0,0.01364]
[1765178206427,0.01092824,91506.0,91504.0,0.06139105]
[1765178206626,0.01092824,91506.0,91505.0,0.01628]
[1765178206826,0.01092788,91509.0,91505.0,0.05179123]
[1765178207008,0.22948561,91509.0,91508.0,0.02792]
[1765178207194,0.22948561,91509.0,91508.0,0.05089]
[1765178207387,0.01092788,91509.0,91508.0,0.05089]
[1765178207606,0.01092764,91511.0,91510.0,0.02214105]
[1765178207817,0.0109274,91513.0,91510.0,0.01789287]
[1765178208028,0.01092693,91517.0,91516.0,0.02214105]
[1765178208251,0.01092657,91520.0,91516.0,0.02214105]
[1765178208252,0.01092657,91520.0,91516.0,0.02803287]
[1765178208501,0.01092657,91520.0,91519.0,0.01628]
[1765178208927,0.01092657,91520.0,91519.0,0.03925]
[1765178209388,0.22945098,91523.0,91521.0,0.02214105]
[1765178209389,0.01092633,91522.0,91521.0,0.02214105]
[1765178209556,0.01092621,91523.0,91522.0,0.02214105]
[1765178210972,0.21852669,91522.0,91521.0,0.001]
[1765178211626,0.21853146,91520.0,91519.0,0.00161287]
[1765178212131,0.22945302,91522.0,91521.0,0.002]
[1765178212990,0.21853146,91520.0,91519.0,0.02558287]
[1765178213342,0.21853146,91520.0,91519.0,0.02458287]
[1765178213647,0.21853146,91520.0,91519.0,0.04086287]
[1765178213792,0.22945302,91522.0,91519.0,0.04386287]
[1765178214226,0.21853099,91521.0,91519.0,0.04386287]
[1765178214449,0.21853099,91521.0,91519.0,0.00461287]
[1765178214608,0.21853099,91521.0,91519.0,0.00161287]
[1765178214821,0.21853099,91521.0,91519.0,0.002]
[1765178215005,0.05643361,91520.0,91519.0,0.002]
[1765178215342,0.05643361,91520.0,91519.0,0.001]
[1765178215518,0.05643361,91520.0,91519.0,0.002]
[1765178216079,0.05643361,91520.0,91519.0,0.003]
[1765178216437,0.05643361,91520.0,91519.0,0.002]
[1765178216786,0.01092776,91510.0,91507.0,0.02494]
[1765178217002,0.22948352,91510.0,91507.0,0.02494]
[1765178217597,0.22948352,91510.0,91507.0,0.0077]
[1765178217799,0.22948352,91510.0,91507.0,0.02494]
[1765178217953,0.21856012,91508.0,91507.0,0.02494]
[1765178218158,0.21856012,91508.0,91507.0,0.02794]
[1765178218371,0.21856012,91508.0,91507.0,0.02894]
[1765178218577,0.01092776,91510.0,91507.0,0.27047177]
[1765178218812,0.01092752,91512.0,91508.0,0.04511105]
[1765178219537,0.22947989,91512.0,91508.0,0.04511105]
[1765178219765,0.22948274,91511.0,91508.0,0.04511105]
[1765178219974,0.22948274,91511.0,91508.0,0.02214105]
[1765178220178,0.21855719,91510.0,91508.0,0.02314105]
[1765178220376,0.21855719,91510.0,91508.0,0.001]
[1765178220581,0.21855719,91510.0,91508.0,0.003]
[1765178220805,0.21855719,91510.0,91508.0,0.001]
[1765178221293,0.21855719,91510.0,91508.0,0.004]
[1765178221497,0.21855719,91510.0,91508.0,0.001]
[1765178221654,0.21856012,91508.0,91507.0,0.02655287]
[1765178221856,0.01092776,91510.0,91507.0,0.04952287]
[1765178222048,0.01092776,91510.0,91509.0,0.01628]
[1765178222248,0.01092776,91510.0,91509.0,0.03925]
[1765178222885,0.22948274,91511.0,91509.0,0.03925]
[1765178223087,0.01092752,91512.0,91510.0,0.03925]
[1765178223266,0.01092752,91512.0,91511.0,0.01628]
[1765178223451,0.01092752,91512.0,91511.0,0.03925]
[1765178224268,0.01092752,91512.0,91511.0,0.01628]
[1765178224473,0.01092896,91500.0,91493.0,0.01245]
[1765178224743,0.01092896,91500.0,91493.0,0.01406287]
[1765178224744,0.01092943,91496.0,91493.0,0.01406287]
[1765178224918,0.22952043,91496.0,91493.0,0.01406287]
[1765178225229,0.22952043,91496.0,91495.0,0.01547]
[1765178225428,0.01092943,91496.0,91495.0,0.01547]
[1765178225564,0.22951575,91497.0,91495.0,0.04118287]
[1765178225759,0.01092932,91497.0,91496.0,0.01547]
[1765178226001,0.22950132,91503.0,91498.0,0.0109292]
[1765178226258,0.21856409,91507.0,91503.0,0.0109286]
[1765178226259,0.22949286,91507.0,91503.0,0.0109286]
[1765178226463,0.22949286,91507.0,91503.0,0.0263986]
[1765178226665,0.01092812,91507.0,91504.0,0.01092848]
[1765178226884,0.01092776,91510.0,91509.0,0.02214105]
[1765178227317,0.01092776,91510.0,91509.0,0.06171105]
[1765178228152,0.2294831,91510.0,91509.0,0.06171105]
[1765178228368,0.01092776,91510.0,91509.0,0.06171105]
[1765178228857,0.01092776,91510.0,91509.0,0.06271105]
[1765178229608,0.01092776,91510.0,91509.0,0.06282825]
[1765178230142,0.01092776,91510.0,91509.0,0.06582825]
[1765178230339,0.01092764,91511.0,91510.0,0.02214105]
[1765178230723,0.01092764,91511.0,91510.0,0.04624105]
[1765178231278,0.01092752,91512.0,91510.0,0.03957]
[1765178231641,0.22947823,91512.0,91510.0,0.04057]
[1765178231842,0.22947823,91512.0,91510.0,0.01647]
[1765178232142,0.22947823,91512.0,91510.0,0.01547]
[1765178232451,0.22947823,91512.0,91510.0,0.01947]
[1765178232687,0.22947823,91512.0,91510.0,0.004]
[1765178232839,0.22947823,91512.0,91510.0,0.001]
[1765178233038,0.22947823,91512.0,91510.0,0.003]
[1765178234460,0.22947823,91512.0,91511.0,0.02444]
[1765178234694,0.22947823,91512.0,91510.0,0.003]
[1765178235390,0.22947823,91512.0,91510.0,0.002]
[1765178235598,0.21855534,91510.0,91509.0,0.0001172]
[1765178235958,0.22947823,91512.0,91511.0,0.01448]
[1765178236164,0.22947823,91512.0,91511.0,0.01248]
[1765178236333,0.22947823,91512.0,91511.0,0.001]
[1765178236975,0.22947823,91512.0,91511.0,0.003]
[1765178237212,0.22947823,91512.0,91511.0,0.002]
[1765178238358,0.22947823,91512.0,91511.0,0.003]
[1765178241617,0.26880823,91512.0,91511.0,0.003]
[1765178242048,0.33133122,91512.0,91511.0,0.003]
[1765178242180,0.43246398,91512.0,91511.0,0.003]
[1765178242522,0.34857122,91512.0,91511.0,0.003]
[1765178242732,0.34857122,91512.0,91511.0,0.001]
[1765178242733,0.38099071,91512.0,91511.0,0.001]
[1765178243134,0.38099071,91512.0,91511.0,0.002]
[1765178243332,0.28107833,91510.0,91509.0,0.0001172]
[1765178243484,0.31871432,91510.0,91509.0,0.0001172]
[1765178243866,0.44959477,91510.0,91509.0,0.0001172]
[1765178244070,0.45981552,91510.0,91509.0,0.0001172]
[1765178244426,0.35282507,91510.0,91509.0,0.0001172]
[1765178244611,0.33062908,91510.0,91509.0,0.0001172]
[1765178245141,0.33162908,91510.0,91509.0,0.0001172]
[1765178245752,0.33562908,91510.0,91509.0,0.0001172]
[1765178246339,0.32540833,91510.0,91509.0,0.0001172]
[1765178248363,0.3356191,91510.0,91509.0,0.0001172]
[1765178249206,0.32540833,91510.0,91509.0,0.0001172]
[1765178261127,0.30151833,91510.0,91509.0,0.0001172]
[1765178261353,0.32540833,91510.0,91509.0,0.0001172]
[1765178270233,0.33563368,91510.0,91509.0,0.0001172]
[1765178291889,0.29630368,91510.0,91509.0,0.0108872]
[1765178292092,0.29630368,91510.0,91509.0,0.05284007]
[1765178292093,0.005,91510.0,91509.0,0.05284007]
[1765178292417,0.005,91510.0,91509.0,0.07498112]
[1765178292986,0.004,91510.0,91509.0,0.07498112]
[1765178293615,0.22945579,91521.0,91516.0,0.01092705]
[1765178293823,0.22945579,91521.0,91520.0,0.02708]
[1765178294236,0.01092645,91521.0,91520.0,0.05334287]
[1765178294451,0.01092621,91523.0,91520.0,0.05334287]
[1765178294621,0.01092621,91523.0,91522.0,0.02749]
[1765178295176,0.22944598,91525.0,91522.0,0.05214]
[1765178295349,0.22944598,91525.0,91522.0,0.05375287]
[1765178295549,0.21852402,91524.0,91522.0,0.02910287]
[1765178295753,0.21852402,91524.0,91523.0,0.02465]
[1765178295967,0.22944598,91525.0,91523.0,0.02465]
[1765178296774,0.01092597,91525.0,91523.0,0.02465]
[1765178297174,0.21852191,91524.0,91523.0,0.02626287]
[1765178297836,0.21852191,91524.0,91523.0,0.00161287]
[1765178298200,0.21852191,91524.0,91523.0,0.00261287]
[1765178300560,0.22944132,91527.0,91523.0,0.01353908]
[1765178300788,0.01092585,91526.0,91523.0,0.00261287]
[1765178300985,0.01092585,91526.0,91523.0,0.02726287]
[1765178301313,0.01092585,91526.0,91525.0,0.01569]
[1765178302436,0.01092549,91529.0,91525.0,0.01569]
[1765178302671,0.22943998,91528.0,91526.0,0.0269]
[1765178302880,0.22943998,91528.0,91526.0,0.01121]
[1765178304093,0.21851475,91527.0,91526.0,0.01121]
[1765178304329,0.01092585,91526.0,91523.0,0.00161287]
[1765178304468,0.21851953,91525.0,91523.0,0.00161287]
[1765178306358,0.01092585,91526.0,91523.0,0.00261287]
[1765178307536,0.01092585,91526.0,91523.0,0.00161287]
[1765178307739,0.22943998,91528.0,91525.0,0.02586]
[1765178307967,0.22943998,91528.0,91526.0,0.01569]
[1765178308164,0.22943998,91528.0,91526.0,0.04034]
[1765178308395,0.22943998,91528.0,91526.0,0.01569]
[1765178308596,0.22943998,91528.0,91525.0,0.01017]
[1765178308773,0.21851714,91526.0,91525.0,0.01017]
[1765178308980,0.21851714,91526.0,91525.0,0.01117]
[1765178309401,0.21851714,91526.0,91525.0,0.01417]
[1765178309662,0.21851714,91526.0,91525.0,0.01117]
[1765178310072,0.21851714,91526.0,91525.0,0.01517]
[1765178310291,0.22943998,91528.0,91525.0,0.05551]
[1765178310701,0.01092561,91528.0,91526.0,0.02465]
[1765178310932,0.02436,91537.0,91526.0,0.02465]
[1765178310933,0.01092466,91536.0,91529.0,0.21850998]
[1765178311151,0.01092466,91536.0,91529.0,0.2579539]
[1765178311368,0.01092478,91535.0,91529.0,0.2826039]
[1765178311800,0.0109249,91534.0,91529.0,0.2826039]
[1765178312019,0.01092502,91533.0,91529.0,0.2826039]
[1765178312446,0.01092502,91533.0,91529.0,0.26046285]
[1765178312661,0.0109249,91534.0,91529.0,0.2826039]
[1765178313107,0.0109249,91534.0,91529.0,0.06609392]
[1765178313316,0.0109249,91534.0,91529.0,0.06409392]
[1765178313743,0.01092514,91532.0,91529.0,0.06809392]
[1765178313965,0.0109249,91534.0,91529.0,0.06809392]
[1765178313966,0.01092502,91533.0,91529.0,0.06909392]
[1765178314164,0.0109249,91534.0,91529.0,0.06909392]
[1765178314586,0.01092502,91533.0,91529.0,0.06909392]
[1765178315234,0.0109249,91534.0,91529.0,0.06909392]
[1765178317081,0.22942986,91532.0,91529.0,0.06909392]
[1765178317296,0.21850704,91531.0,91529.0,0.00661287]
[1765178317763,0.03992,91530.0,91529.0,0.005]
[1765178317964,0.07927982,91530.0,91529.0,0.005]
[1765178318170,0.07927982,91530.0,91529.0,0.004]
[1765178318599,0.01092645,91521.0,91518.0,0.01724]
[1765178318814,0.21853385,91519.0,91518.0,0.01724]
[1765178319254,0.01092645,91521.0,91518.0,0.01724]
[1765178319255,0.22945561,91521.0,91518.0,0.01724]
[1765178319486,0.22945757,91521.0,91518.0,0.01724]
[1765178319915,0.01092645,91521.0,91518.0,0.02224]
[1765178320139,0.21853385,91519.0,91518.0,0.02224]
[1765178320351,0.21853385,91519.0,91518.0,0.01724]
[1765178320570,0.01092681,91518.0,91515.0,0.01152]
[1765178320997,0.21853399,91519.0,91515.0,0.02244717]
[1765178321206,0.22946522,91518.0,91515.0,0.01152]
[1765178321652,0.01092681,91518.0,91515.0,0.01152]
[1765178321865,0.01092645,91521.0,91517.0,0.21853863]
[1765178322103,0.01092669,91519.0,91516.0,0.01092705]
[1765178322364,0.01092669,91519.0,91515.0,0.24499023]
[1765178322551,0.22946336,91518.0,91515.0,0.01152]
[1765178322769,0.01092681,91518.0,91515.0,0.02644717]
[1765178322992,0.01092681,91518.0,91515.0,0.01552]
[1765178323243,0.21853863,91517.0,91515.0,0.001]
[1765178323453,0.21853863,91517.0,91516.0,0.004]
[1765178323674,0.24128863,91517.0,91516.0,0.004]
[1765178323888,0.21853863,91517.0,91516.0,0.004]
[1765178324714,0.22947315,91514.0,91510.0,0.01092776]
[1765178325075,0.01092705,91516.0,91511.0,0.01092764]
[1765178325280,0.01092705,91516.0,91511.0,0.22947878]
[1765178325481,0.01092717,91515.0,91511.0,0.01092764]
[1765178326285,0.01092717,91515.0,91511.0,0.03458764]
[1765178326679,0.01092728,91514.0,91510.0,0.01092776]
[1765178326882,0.01092728,91514.0,91511.0,0.001]
[1765178327514,0.01092752,91512.0,91509.0,0.01104508]
[1765178327709,0.01092752,91512.0,91511.0,0.003]
[1765178328401,0.0109274,91513.0,91511.0,0.003]
[1765178328601,0.01092752,91512.0,91509.0,0.0237772]
[1765178328749,0.0109274,91513.0,91509.0,0.03470508]
[1765178328950,0.0109274,91513.0,91511.0,0.004]
[1765178329137,0.0109274,91513.0,91510.0,0.001]
[1765178329341,0.21855296,91511.0,91509.0,0.0001172]
[1765178329700,0.21855296,91511.0,91509.0,0.00273007]
[1765178330028,0.21855296,91511.0,91509.0,0.00173007]
[1765178330535,0.21855296,91511.0,91509.0,0.00273007]
[1765178330939,0.01092752,91512.0,91509.0,0.00273007]
[1765178331183,0.01092728,91514.0,91511.0,0.00961]
[1765178331359,0.22947312,91514.0,91511.0,0.00961]
[1765178332058,0.21855036,91513.0,91511.0,0.00961]
[1765178332892,0.21855036,91513.0,91511.0,0.01061]
[1765178333266,0.21855036,91513.0,91511.0,0.00961]
[1765178333667,0.22947312,91514.0,91511.0,0.01461]
[1765178334087,0.22947029,91516.0,91513.0,0.01644]
[1765178334289,0.01092705,91516.0,91513.0,0.0273674]
[1765178334489,0.01092705,91516.0,91513.0,0.01644]
[1765178335186,0.21855057,91512.0,91511.0,0.01061]
[1765178335371,0.21855057,91512.0,91511.0,0.01461]
[1765178335557,0.21855057,91512.0,91511.0,0.01361]
[1765178336773,0.21855057,91512.0,91511.0,0.01061]
[1765178337776,0.21855057,91512.0,91511.0,0.01461]
[1765178341749,0.21854818,91513.0,91511.0,0.05471]
[1765178341943,0.22947465,91514.0,91513.0,0.02214105]
[1765178342151,0.22947465,91514.0,91513.0,0.03858105]
[1765178342363,0.22947465,91514.0,91513.0,0.06224105]
[1765178343332,0.22947465,91514.0,91513.0,0.02214105]
[1765178343552,0.21855057,91512.0,91511.0,0.001]
[1765178344797,0.22947809,91512.0,91509.0,0.00173007]
[1765178345000,0.22947809,91512.0,91511.0,0.004]
[1765178345693,0.22947809,91512.0,91511.0,0.03144]
[1765178345875,0.22947809,91512.0,91511.0,0.05437]
[1765178346083,0.22947809,91512.0,91511.0,0.03144]
[1765178346398,0.22947809,91512.0,91511.0,0.02744]
[1765178346798,0.01092752,91512.0,91511.0,0.05037]
[1765178346975,0.22947539,91514.0,91511.0,0.05037]
[1765178347181,0.01092728,91514.0,91511.0,0.03836764]
[1765178347404,0.01092728,91514.0,91511.0,0.04236764]
[1765178347583,0.22947475,91514.0,91511.0,0.03244]
[1765178348102,0.22947475,91514.0,91511.0,0.05037]
[1765178348313,0.22947475,91514.0,91511.0,0.02744]
[1765178348531,0.22947475,91514.0,91512.0,0.02293]
[1765178349735,0.01092728,91514.0,91512.0,0.02293]
[1765178349960,0.01092728,91514.0,91512.0,0.02693]
[1765178350671,0.21854818,91513.0,91512.0,0.005]
[1765178351455,0.21854818,91513.0,91512.0,0.004]
[1765178352036,0.21854818,91513.0,91512.0,0.005]
[1765178352715,0.21854818,91513.0,91512.0,0.001]
[1765178353121,0.21854818,91513.0,91512.0,0.005]
[1765178354864,0.25849818,91513.0,91512.0,0.005]
[1765178355011,0.23430818,91513.0,91512.0,0.005]
[1765178355211,0.21854818,91513.0,91512.0,0.005]
[1765178364339,0.25849818,91513.0,91512.0,0.005]
[1765178364958,0.21854818,91513.0,91512.0,0.005]
[1765178371072,0.01092728,91514.0,91512.0,0.04546]
[1765178371073,0.22947508,91514.0,91512.0,0.04546]
[1765178371246,0.22947508,91514.0,91513.0,0.04992105]
[1765178372595,0.22947508,91514.0,91513.0,0.05392105]
[1765178372802,0.01092705,91516.0,91513.0,0.05392105]
[1765178372803,0.01092705,91516.0,91513.0,0.07946392]
[1765178373011,0.21853871,91517.0,91515.0,0.01653]
[1765178373259,0.21853871,91517.0,91516.0,0.01653]
[1765178373643,0.22946564,91517.0,91516.0,0.04046]
[1765178373854,0.01092573,91527.0,91523.0,0.01092621]
[1765178374216,0.01092573,91527.0,91524.0,0.0059]
[1765178374217,0.22944299,91526.0,91524.0,0.0059]
[1765178374402,0.22944299,91526.0,91524.0,0.02983]
[1765178374602,0.22944299,91526.0,91525.0,0.01653]
[1765178375193,0.22944299,91526.0,91525.0,0.04046]
[1765178375370,0.01092585,91526.0,91525.0,0.04046]
[1765178375784,0.01092585,91526.0,91525.0,0.04346]
[1765178379079,0.01092573,91527.0,91525.0,0.04346]
[1765178379257,0.01092573,91527.0,91526.0,0.05171]
[1765178379883,0.01092573,91527.0,91526.0,0.01125]
[1765178380287,0.01422178,91527.0,91526.0,0.01125]
[1765178381355,0.01522178,91527.0,91526.0,0.01125]
[1765178384076,0.01092621,91523.0,91520.0,0.0059]
[1765178384228,0.01092621,91523.0,91519.0,0.02214105]
[1765178384229,0.21852908,91521.0,91519.0,0.02214105]
[1765178384407,0.22164985,91521.0,91519.0,0.02214105]
[1765178384611,0.21852908,91521.0,91519.0,0.02214105]
[1765178385218,0.21852908,91521.0,91520.0,0.001]
[1765178385656,0.21852908,91521.0,91519.0,0.02314105]
[1765178385840,0.21852908,91521.0,91519.0,0.001]
[1765178386053,0.21852908,91521.0,91519.0,0.002]
[1765178386244,0.21852908,91521.0,91519.0,0.001]
[1765178386644,0.21852908,91521.0,91520.0,0.001]
[1765178387743,0.21852908,91521.0,91520.0,0.002]
[1765178387946,0.21852908,91521.0,91520.0,0.001]
[1765178388928,0.21852908,91521.0,91520.0,0.002]
[1765178390891,0.01092633,91522.0,91520.0,0.02464]
[1765178391103,0.21852,91525.0,91521.0,0.03979645]
[1765178391104,0.01092597,91525.0,91521.0,0.03979645]
[1765178391340,0.01092609,91524.0,91522.0,0.0166]
[1765178391491,0.01092609,91524.0,91522.0,0.03924]
[1765178391849,0.0031792,91523.0,91522.0,0.03924]
[1765178392008,0.0031792,91523.0,91522.0,0.0166]
[1765178392730,0.0031792,91523.0,91522.0,0.03924]
[1765178394261,0.0031792,91523.0,91522.0,0.04024]
[1765178395017,0.0031792,91523.0,91522.0,0.001]
[1765178396243,0.0031792,91523.0,91522.0,0.04024]
[1765178397284,0.0031792,91523.0,91522.0,0.25876669]
[1765178398162,0.0031792,91523.0,91522.0,0.04024]
[1765178398312,0.0031792,91523.0,91522.0,0.04185287]
[1765178403768,0.0031792,91523.0,91522.0,0.00261287]
[1765178405553,0.0031792,91523.0,91522.0,0.04389287]
[1765178405752,0.0031792,91523.0,91522.0,0.04680973]
[1765178405953,0.0031792,91523.0,91522.0,0.06895078]
[1765178406158,0.0031792,91523.0,91522.0,0.07702198]
[1765178406570,0.0031792,91523.0,91522.0,0.07602198]
[1765178406906,0.0031792,91523.0,91522.0,0.08102198]
[1765178407291,0.0031792,91523.0,91522.0,0.08302198]
[1765178407490,0.0031792,91523.0,91522.0,0.14198302]
[1765178408406,0.0031792,91523.0,91522.0,0.08302198]
[1765178408611,0.0031792,91523.0,91522.0,0.14198302]
[1765178409122,0.0031792,91523.0,91522.0,0.08302198]
[1765178414495,0.0031792,91523.0,91522.0,0.07203392]
[1765178414701,0.0031792,91523.0,91522.0,0.007]
[1765178415034,0.2217035,91523.0,91522.0,0.007]
[1765178415760,0.2606135,91523.0,91522.0,0.005]
[1765178415932,0.21855534,91510.0,91506.0,0.0109]
[1765178417517,0.21855534,91510.0,91509.0,0.0031172]
[1765178418945,0.01092752,91512.0,91509.0,0.0031172]
[1765178419189,0.01092728,91514.0,91511.0,0.02677764]
[1765178419336,0.22946673,91517.0,91514.0,0.02729]
[1765178419538,0.218534,91519.0,91515.0,0.01092717]
[1765178419763,0.01092657,91520.0,91516.0,0.22946801]
[1765178420109,0.01092657,91520.0,91517.0,0.01092693]
[1765178420265,0.01092657,91520.0,91517.0,0.03494693]
[1765178420441,0.01092657,91520.0,91519.0,0.01144]
[1765178420644,0.01092645,91521.0,91519.0,0.01144]
[1765178420645,0.01092645,91521.0,91519.0,0.05131]
[1765178420848,0.01092645,91521.0,91520.0,0.01585]
[1765178421048,0.01092621,91523.0,91521.0,0.02214105]
[1765178421275,0.01092621,91523.0,91522.0,0.03987]
[1765178421446,0.21853146,91520.0,91519.0,0.01144]
[1765178422862,0.21853146,91520.0,91519.0,0.01244]
[1765178423633,0.21853146,91520.0,91519.0,0.05231]
[1765178424089,0.01092609,91524.0,91519.0,0.05231]
[1765178424256,0.21851092,91529.0,91525.0,0.02214105]
[1765178424462,0.21851092,91529.0,91526.0,0.02729]
[1765178424463,0.22943641,91529.0,91526.0,0.02729]
[1765178424671,0.22943641,91529.0,91528.0,0.01585]
[1765178425164,0.22943641,91529.0,91528.0,0.03987]
[1765178425526,0.01092549,91529.0,91528.0,0.03987]
[1765178425967,0.0004,91530.0,91528.0,0.04148287]
[1765178426145,0.0004,91530.0,91529.0,0.06201105]
[1765178427990,0.0004,91530.0,91529.0,0.06362392]
[1765178428359,0.00378367,91530.0,91529.0,0.06362392]
[1765178429383,0.00378367,91530.0,91529.0,0.06462392]
[1765178429587,0.00378367,91530.0,91529.0,0.07554786]
[1765178431794,0.00378367,91530.0,91529.0,0.06462392]
[1765178433444,0.00378367,91530.0,91529.0,0.38762392]
[1765178433651,0.00378367,91530.0,91529.0,5.38762392]
[1765178433871,0.00378367,91530.0,91529.0,5.39854834]
[1765178434668,0.00378367,91530.0,91529.0,3.90894834]
[1765178435006,0.00378367,91530.0,91529.0,3.90794834]
[1765178435181,0.00378367,91530.0,91529.0,3.73264834]
[1765178435587,0.00378367,91530.0,91529.0,5.40254834]
[1765178435994,0.00378367,91530.0,91529.0,5.40054834]
[1765178436358,0.00378367,91530.0,91529.0,5.40754834]
[1765178437373,0.00378367,91530.0,91529.0,4.61464834]
[1765178437579,0.00378367,91530.0,91529.0,4.04984834]
[1765178437783,0.00378367,91530.0,91529.0,4.61114834]
[1765178438124,0.00378367,91530.0,91529.0,4.04704834]
[1765178438675,0.00378367,91530.0,91529.0,5.04004834]
[1765178439769,0.00378367,91530.0,91529.0,5.40754834]
[1765178440391,0.00378367,91530.0,91529.0,5.42478834]
[1765178441700,0.00378367,91530.0,91529.0,5.40754834]
[1765178441888,0.00378367,91530.0,91529.0,5.42478834]
[1765178443440,0.00378367,91530.0,91529.0,4.61078834]
[1765178443651,0.00378367,91530.0,91529.0,4.06718834]
[1765178443866,0.00378367,91530.0,91529.0,4.01698834]
[1765178444754,0.00378367,91530.0,91529.0,5.42478834]
[1765178445388,0.00378367,91530.0,91529.0,5.30038834]
[1765178445603,0.00378367,91530.0,91529.0,3.43058834]
[1765178445809,0.00378367,91530.0,91529.0,2.76038834]
[1765178446912,0.00378367,91530.0,91529.0,5.42478834]
[1765178447950,0.00378367,91530.0,91529.0,1.88524834]
[1765178448360,0.00378367,91530.0,91529.0,1.90248834]
[1765178449009,0.00378367,91530.0,91529.0,5.42478834]
[1765178452104,0.00378367,91530.0,91529.0,0.42478834]
[1765178452307,0.00378367,91530.0,91529.0,5.42478834]
[1765178454684,0.00378367,91530.0,91529.0,3.90548834]
[1765178455079,0.00378367,91530.0,91529.0,4.36588834]
[1765178455283,0.00378367,91530.0,91529.0,2.02978834]
[1765178455571,0.00378367,91530.0,91529.0,0.40053834]
[1765178455781,0.00378367,91530.0,91529.0,0.48377009]
[1765178456475,0.00378367,91530.0,91529.0,0.41399392]
[1765178456890,0.00378367,91530.0,91529.0,0.41099392]
[1765178457115,0.00378367,91530.0,91529.0,0.40399392]
[1765178457314,0.00378367,91530.0,91529.0,0.40599392]
[1765178457471,0.00378367,91530.0,91529.0,0.41099392]
[1765178457656,0.00378367,91530.0,91529.0,0.40399392]
[1765178458058,0.00378367,91530.0,91529.0,0.40699392]
[1765178465898,0.00378367,91530.0,91529.0,0.38324]
[1765178466157,0.00378367,91530.0,91529.0,0.366]
[1765178466358,0.00378367,91530.0,91529.0,0.38324]
[1765178470496,0.00378367,91530.0,91529.0,0.06024]
[1765178471264,0.22229126,91530.0,91529.0,0.003]
[1765178472088,0.00378367,91530.0,91529.0,0.06265105]
[1765178472573,0.00378367,91530.0,91529.0,0.06165105]
[1765178472975,0.00378367,91530.0,91529.0,0.06265105]
[1765178477810,0.00378367,91530.0,91529.0,0.07418105]
[1765178482563,0.00378367,91530.0,91529.0,0.08515929]
[1765178482972,0.00378367,91530.0,91529.0,0.07418105]
[1765178483179,0.00378367,91530.0,91529.0,0.002]
[1765178483382,0.07078294,91530.0,91529.0,0.002]
[1765178484451,0.07078294,91530.0,91529.0,0.001]
[1765178485187,0.01092597,91525.0,91522.0,0.01724]
[1765178486057,0.21852191,91524.0,91522.0,0.01724]
[1765178486256,0.21852297,91524.0,91522.0,0.01724]
[1765178486613,0.21852297,91524.0,91522.0,0.01824]
[1765178486811,0.01083,91523.0,91522.0,0.01824]
[1765178487326,0.01083,91523.0,91522.0,0.01924]
[1765178487730,0.01083,91523.0,91522.0,0.01824]
[1765178487923,0.01083,91523.0,91522.0,0.01724]
[1765178488123,0.01083,91523.0,91522.0,0.01924]
[1765178488351,0.2293543,91523.0,91522.0,0.01824]
[1765178488561,0.229443,91526.0,91523.0,0.02214105]
[1765178488770,0.01092585,91526.0,91523.0,0.02214105]
[1765178488989,0.01092585,91526.0,91523.0,0.04492105]
[1765178489691,0.22944517,91526.0,91523.0,0.04492105]
[1765178489871,0.22944517,91526.0,91523.0,0.02314105]
[1765178490389,0.2185215,91525.0,91523.0,0.02314105]
[1765178490595,0.01092573,91527.0,91523.0,0.02414105]
[1765178491345,0.01092573,91527.0,91523.0,0.02314105]
[1765178491741,0.00320841,91524.0,91523.0,0.03406726]
[1765178492138,0.00320841,91524.0,91523.0,0.03306726]
[1765178493086,0.00320841,91524.0,91523.0,0.03406726]
[1765178493286,0.00320841,91524.0,91523.0,0.05784726]
[1765178493923,0.00320841,91524.0,91523.0,0.05684726]
[1765178494082,0.00320841,91524.0,91523.0,0.05784726]
[1765178494285,0.00320841,91524.0,91523.0,0.002]
[1765178494590,0.22173032,91524.0,91523.0,0.002]
[1765178496234,0.00320841,91524.0,91523.0,0.002]
[1765178496431,0.00320841,91524.0,91523.0,0.01773]
[1765178496652,0.00320841,91524.0,91523.0,0.04051]
[1765178504354,0.00320841,91524.0,91523.0,0.06668967]
[1765178504559,0.00320841,91524.0,91523.0,0.06830254]
[1765178505319,0.00320841,91524.0,91523.0,5.47785183]
[1765178505655,0.00320841,91524.0,91523.0,5.39163704]
[1765178505857,0.00320841,91524.0,91523.0,5.38963704]
[1765178506185,0.00320841,91524.0,91523.0,5.39063704]
[1765178506503,0.00320841,91524.0,91523.0,1.83413704]
[1765178506765,0.00320841,91524.0,91523.0,1.83313704]
[1765178506982,0.00320841,91524.0,91523.0,1.83613704]
[1765178507120,0.00320841,91524.0,91523.0,1.62873704]
[1765178507340,0.00320841,91524.0,91523.0,1.42443704]
[1765178507724,0.00320841,91524.0,91523.0,1.29313704]
[1765178508375,0.00320841,91524.0,91523.0,1.66623704]
[1765178508578,0.00320841,91524.0,91523.0,1.29053704]
[1765178509294,0.00320841,91524.0,91523.0,0.40063704]
[1765178509514,0.00320841,91524.0,91523.0,2.05083704]
[1765178510469,0.00320841,91524.0,91523.0,2.05103704]
[1765178511081,0.00320841,91524.0,91523.0,1.74343704]
[1765178511389,0.00320841,91524.0,91523.0,1.90803704]
[1765178511548,0.00320841,91524.0,91523.0,1.79873704]
[1765178512356,0.00320841,91524.0,91523.0,1.79383704]
[1765178512566,0.00320841,91524.0,91523.0,1.87231449]
[1765178512952,0.00320841,91524.0,91523.0,1.82031449]